[Event "44th BAN-ch OMICON 2018"]
[Site "Dhaka"]
[Date "2018.11.26"]
[Round "3"]
[White "Ikramul, Haq Siam"]
[Black "Md, Sariatullah"]
[Result "1-0"]
[ECO "A11"]
[WhiteElo "2100"]
[BlackElo "2027"]
[Annotator "NA"]
[PlyCount "111"]
[EventDate "2018.11.24"]
[EventType "swiss"]
[EventCountry "BAN"]
[SourceTitle "playchess.com"]
[Source "ChessBase"]
[SourceQuality "1"]
[TimeControl "40/5400+30:1800+30"]

1. g3 {[%emt 1:30:30]} d5 {[%emt 1:30:30]} 2. Bg2 {[%emt 0:00:30]} Nf6 {[%emt 0:00:30]} 3. Nf3 {[%emt 0:00:30]} g6 {[%emt 0:00:30]} 4. b3 {[%emt 0:00:30]} Bg7 {[%emt 0:00:30]} 5. Bb2 {[%emt 0:00:30]} O-O {[%emt 0:00:30]} 6. c4 {[%emt 0:00:30]} c6 {[%emt 0:00:30]} 7. O-O {[%emt 0:00:30]} Nbd7 {[%emt 0:00:30]} 8. d3 {[%emt 0:00:30]} Re8 {[%emt 0:00:30]} 9. Nbd2 {[%emt 0:00:30]} e5 {[%emt 0:00:30]} 10. e4 {[%emt 0:00:30] A11: English Opening: 1...c6} (10. cxd5 cxd5 11. Rc1 b6 12. Qc2 Ba6 13. b4 Bh6 14. Rfd1 Rc8 15. Qa4 Rxc1 16. Bxc1 Qc8 17. Nb3 Bf8 18. Bg5 Bb7 {1-0 (53) Kokarev,D (2624)-Ponkratov,P (2624) Khanty-Mansiysk 2014}) 10... d4 {[%emt 0:00:30]} 11. b4 {[%emt 0:00:30]} c5 {[%emt 0:00:30]} 12. a3 {[%emt 0:00:30]} Nh5 $146 {[%emt 0:00:30]} ({Predecessor:} 12... Rb8 13. Nb3 b6 14. Bc1 Qc7 15. Ne1 Nf8 16. f4 Ng4 17. Nc2 exf4 18. gxf4 {0-1 (44) Husser,O (1858)-Zschorsch,P (1871) Freudenstadt 2006}) 13. Re1 {[%emt 0:00:30]} b6 {[%emt 0:00:30]} 14. Bc1 {[%emt 0:00:30]} Qc7 {[%emt 0:00:30]} 15. Rb1 {[%emt 0:00:30]} Nf8 {[%emt 0:00:30]} 16. Nh4 {[%emt 0:00:30]} Ne6 {[%emt 0:00:30]} 17. Bf3 {[%emt 0:00:30]} Nf6 {[%emt 0:00:30]} 18. Nf1 {[%emt 0:00:30]} Qe7 {[%emt 0:00:30]} 19. Bd2 {[%emt 0:00:30]} Bd7 {[%emt 0:00:30]} 20. Bg2 {[%emt 0:00:30]} Rab8 {[%emt 0:00:30]} 21. b5 {[%emt 0:00:30]} h5 {[%emt 0:00:30]} 22. h3 {[%emt 0:00:30]} (22. f4 $11) 22... Nh7 {[%emt 0:00:30]} 23. Nf3 {[%emt 0:00:30]} Neg5 {[%emt 0:00:30]} 24. Nxg5 {[%emt 0:00:30]} Nxg5 {[%emt 0:00:30]} 25. Kh2 {[%emt 0:00:30]} Ne6 {[%emt 0:00:30]} 26. h4 {[%emt 0:00:30]} Kh7 {[%emt 0:00:30]} 27. Kg1 {[%emt 0:00:30]} Qf8 {[%emt 0:00:30]} 28. Nh2 {[%emt 0:00:30]} Bh6 {[%emt 0:00:30]} 29. Nf3 {[%emt 0:00:30]} f6 {[%emt 0:00:30]} 30. a4 {[%emt 0:00:30]} Nc7 {[%emt 0:00:30]} 31. a5 {[%emt 0:00:30]} Bg4 {[%emt 0:00:30]} 32. Ra1 {[%emt 0:00:30]} Ra8 {[%emt 0:00:30]} 33. Qc1 {[%emt 0:00:30]} Bxf3 {[%emt 0:00:30]} 34. Bxf3 {[%emt 0:00:30]} Bxd2 {[%emt 0:00:30]} 35. Qxd2 {[%emt 0:00:30]} Qe7 {[%emt 0:00:30]} 36. Ra2 {[%emt 0:00:30]} Kg7 {[%emt 0:00:30]} 37. Rea1 {[%emt 0:00:30]} Rh8 {[%emt 0:00:30]} 38. Qd1 {[%emt 0:00:30]} Qf7 {[%emt 0:00:30]} 39. axb6 {[%emt 0:00:30]} axb6 {[%emt 0:00:30]} 40. Ra7 {[%emt 0:00:30]} Qe7 {[%emt 0:00:30]} 41. Kf1 {[%emt 0:30:30]} Rhb8 {[%emt 0:30:30] [#]} ({Better is} 41... Qd6) 42. Bg2 {[%emt 0:00:30]} ({Only move:} 42. g4 $1 $16) 42... Rxa7 {[%emt 0:00:30]} 43. Rxa7 {[%emt 0:00:30]} Ra8 {[%emt 0:00:30]} 44. Rb7 {[%emt 0:00:30]} Qd6 {[%emt 0:00:30]} 45. Bh3 {[%emt 0:00:30]} Ra2 {[%emt 0:00:30]} 46. Kg2 {[%emt 0:00:30]} Ra3 {[%emt 0:00:30]} 47. Be6 {[%emt 0:00:30]} Ra2 {[%emt 0:00:30]} 48. Bd5 {[%emt 0:00:30]} Kh6 {[%emt 0:00:30]} 49. Qb1 {[%emt 0:00:30]} Ra5 {[%emt 0:00:30]} 50. Bc6 {[%emt 0:00:30]} Na8 $18 {[%emt 0:00:30]} (50... Kg7 51. Qh1 (51. Rxb6 Ra7 $18) 51... Qd8) 51. Qd1 {[%emt 0:00:30]} Ra2 {[%emt 0:00:30]} 52. Qf3 {[%emt 0:00:30]} Nc7 {[%emt 0:00:30]} 53. Rxb6 {[%emt 0:00:30]} Nxb5 {[%emt 0:00:30]} 54. cxb5 {[%emt 0:00:30] c4dxc4 [%clk 0:00:00] d3 [%clk 0:00:00] Qe3+ [%clk 0:00:00]} g5 {[%emt 0:00:30]} 55. hxg5+ {[%emt 0:00:30]} Kg6 {[%emt 0:00:30]} 56. Be8+ {[%emt 0:00:30]} 1-0

[Event "44th BAN-ch OMICON 2018"]
[Site "Dhaka"]
[Date "2018.11.26"]
[Round "3"]
[White "Swadhin, Sarkar"]
[Black "Mohammad Minhaz Uddin"]
[Result "0-1"]
[ECO "D04"]
[WhiteElo "1875"]
[BlackElo "2290"]
[Annotator "ChessBase"]
[PlyCount "42"]
[EventDate "2018.11.24"]
[EventType "swiss"]
[EventCountry "BAN"]
[SourceTitle "playchess.com"]
[Source "ChessBase"]
[SourceQuality "1"]
[TimeControl "40/5400+30:1800+30"]

1. d4 d5 {[%emt 0:09:14]} 2. Nf3 {[%emt 0:01:36]} Nf6 {[%emt 0:00:06]} 3. e3 {[%emt 0:01:00]} c5 {[%emt 0:03:57]} 4. b3 {[%emt 0:00:36]} Nc6 {[%emt 0:00:51]} 5. Bb2 {[%emt 0:00:09]} cxd4 {[%emt 0:00:20]} 6. exd4 {[%emt 0:00:03]} Bg4 {[%emt 0:00:39]} 7. a3 {[%emt 0:10:46]} e6 {[%emt 0:00:22]} 8. Bd3 {[%emt 0:00:30]} Bd6 {[%emt 0:00:57]} 9. Nbd2 {[%emt 0:00:51]} O-O {[%emt 0:00:53]} 10. O-O {[%emt 0:00:05]} Bh5 {[%emt 0:03:27]} 11. Qe1 {[%emt 0:02:59]} Bg6 {[%emt 0:11:39]} 12. Qe2 {[%emt 0:04:45]} Rc8 {[%emt 0:02:24]} 13. Rfc1 {[%emt 0:13:33]} Nd7 {[%emt 0:03:52]} 14. Bxg6 {[%emt 0:01:30]} hxg6 {[%emt 0:00:03]} 15. Ne5 {[%emt 0:00:34]} Bxe5 {[%emt 0:06:30]} 16. dxe5 {[%emt 0:01:21]} Qc7 {[%emt 0:00:11]} 17. Re1 {[%emt 0:07:11]} Rfd8 {[%emt 0:05:28]} 18. c4 {[%emt 0:05:01]} Nc5 {[%emt 0:04:21]} 19. cxd5 {[%emt 0:04:12]} Rxd5 {[%emt 0:00:05]} 20. Nc4 {[%emt 0:17:05]} Nxb3 {[%emt 0:03:00]} 21. Rad1 {[%emt 0:04:39]} Ncd4 {[%emt 0:00:21]} 0-1

[Event "44th BAN-ch OMICON 2018"]
[Site "Dhaka"]
[Date "2018.11.26"]
[Round "3"]
[White "Swadhin, Sarkar"]
[Black "Mohammad Minhaz Uddin"]
[Result "*"]
[WhiteElo "1875"]
[BlackElo "2290"]
[Annotator "NA RC"]
[PlyCount "17"]
[EventDate "2018.11.24"]
[EventType "swiss"]
[EventCountry "BAN"]
[SourceTitle "playchess.com"]
[Source "ChessBase"]
[SourceQuality "1"]
[TimeControl "40/5400+30:1800+30"]

{[%evp 17,17,-12] d4d5} 1. Nf3 {[%emt 0:01:06]} Nf6 {[%emt 0:08:50]} 2. e3 {[%emt 0:01:00]} c5 {[%emt 0:03:57]} 3. b3 {[%emt 0:00:36]} Nc6 {[%emt 0:00:51]} 4. Bb2 {[%emt 0:00:09] cxd4 [%clk 1:18:02] exd4 [%clk 1:29:36] Bg4 [%clk 1:17:53] a3 [%clk 1:19:20]} e6 {[%emt 0:00:21]} 5. Bd3 {[%emt 0:10:19]} Bd6 {[%emt 0:00:57] Nbd2 [%clk 1:18:59]} 6. O-O {[%emt 0:02:39]} O-O {[%emt 0:00:00] Bh5 [%clk 1:14:14]} 7. Qe1 {[%emt 0:00:46] Bg6 [%clk 1:03:05] Qe2 [%clk 1:12:40] Rc8 [%clk 1:01:11] Rfc1 [%clk 0:59:37]} Ne5 {[%emt 0:20:01]} 8. Bxe5 {[%emt 0:25:09]} Qc7 {[%emt 0:06:28]} 9. c4 $11 {[%emt 0:52:46]} (9. Bxf6 $18 gxf6 10. a4) *

[Event "44th BAN-ch OMICON 2018"]
[Site "Dhaka"]
[Date "2018.11.27"]
[Round "4"]
[White "Islam, Kh. Aminul"]
[Black "Mehdi Hasan Parag"]
[Result "1/2-1/2"]
[ECO "D38"]
[WhiteElo "2253"]
[BlackElo "2218"]
[Annotator "NA"]
[PlyCount "127"]
[EventDate "2018.11.24"]
[EventType "swiss"]
[EventCountry "BAN"]
[SourceTitle "playchess.com"]
[Source "ChessBase"]
[SourceQuality "1"]
[TimeControl "40/5400+30:1800+30"]

{[%evp 28,126,-8,-6,0,0,0,0,17,9,16,8,32767,12,20,4,16,4,0,10,0,0,10,0,8,0,7,0,0,0,5,14,0,-15,0,0,0,-1,0,0,0,-11,0,0,0,-31,0,0,0,0,0,0,0,0,0,0,0,0,0,0,0,0,0,0,0,0,0,32767,32767,32767,0,32767,32767,32767,32767,32767,32767,32767,32767,32767,32767,32767,32767,32767,0,32767,0,0,32767,32767,32767,32767,0,0,0,32767,32767,32767,0,0,0]} 1. d4 {[%emt 0:00:00]} d5 {[%emt 0:00:00]} 2. Nf3 {[%emt 0:00:00]} Nf6 {[%emt 0:00:00]} 3. c4 {[%emt 0:00:00]} e6 {[%emt 0:00:02]} 4. Nc3 {[%emt 0:00:08]} Bb4 {[%emt 0:00:18]} 5. Bg5 {[%emt 0:00:18]} h6 {[%emt 0:00:23]} 6. Bxf6 {[%emt 0:00:05]} Qxf6 {[%emt 0:00:14]} 7. e3 {[%emt 0:00:09]} O-O {[%emt 0:00:26]} 8. Rc1 {[%emt 0:00:06]} Nc6 {[%emt 0:01:43]} 9. Qd3 {[%emt 0:00:09] D38: Queen's Gambit Declined: Ragozin Defence (4 Nf3 Bb4)} (9. cxd5 exd5 10. Bd3 Ne7 11. a3 Bxc3+ 12. bxc3 c5 13. dxc5 Bg4 14. Be2 Rfc8 15. Qd4 Bxf3 16. gxf3 b6 17. Qxf6 gxf6 18. cxb6 axb6 {½-½ (59) Giri,A (2780)-Harikrishna,P (2743) Batumi 2018}) 9... Rd8 {[%emt 0:01:51]} 10. a3 {[%emt 0:00:07]} Bf8 {[%emt 0:01:02]} 11. cxd5 $146 {[%emt 0:02:03]} ({Predecessor:} 11. Be2 a6 12. O-O Na5 13. cxd5 exd5 14. b4 Nc6 15. Na4 Bd6 16. Qc3 g5 {1-0 (30) Yilmaz,M (2630)-Plat,V (2522) Minsk 2017}) 11... exd5 {[%emt 0:00:03]} 12. Be2 {[%emt 0:00:11]} a6 {[%emt 0:00:58]} 13. O-O {[%emt 0:00:53]} Bf5 {[%emt 0:04:00]} 14. Qd1 {[%emt 0:00:38]} Rab8 {[%emt 0:03:33]} 15. Na4 {[%emt 0:01:37]} Bd6 {[%emt 0:03:31]} 16. Nc5 {[%emt 0:02:49]} Ne7 {[%emt 0:07:56]} 17. b4 {[%emt 0:16:07]} g5 {[%emt 0:01:00]} 18. Nd2 {[%emt 0:01:47]} Bg6 {[%emt 0:07:08]} 19. Bh5 {[%emt 0:02:54]} c6 {[%emt 0:05:26]} 20. Re1 {[%emt 0:04:35]} Bc7 {[%emt 0:05:22]} 21. Nf1 {[%emt 0:00:32]} Nf5 {[%emt 0:04:45]} 22. Ng3 {[%emt 0:01:44]} Bxg3 {[%emt 0:02:44]} 23. hxg3 {[%emt 0:00:24]} Nd6 {[%emt 0:01:10]} 24. a4 {[%emt 0:03:46]} Ra8 {[%emt 0:03:19]} 25. a5 {[%emt 0:00:40]} Rac8 {[%emt 0:01:18]} 26. Qf3 {[%emt 0:03:49]} Qxf3 {[%emt 0:04:19]} 27. Bxf3 {[%emt 0:00:09]} Rc7 {[%emt 0:00:24]} 28. g4 {[%emt 0:01:00]} Re7 {[%emt 0:00:33]} 29. Bd1 {[%emt 0:03:15]} Rde8 {[%emt 0:02:34]} 30. Bc2 {[%emt 0:06:51]} Kg7 {[%emt 0:00:53]} 31. Bxg6 {[%emt 0:04:33]} Kxg6 {[%emt 0:01:25]} 32. Re2 {[%emt 0:00:40]} Nb5 {[%emt 0:02:33]} 33. Rd2 {[%emt 0:01:36]} Nd6 {[%emt 0:07:09]} 34. Re2 {[%emt 0:01:37]} h5 {[%emt 0:01:46]} 35. gxh5+ {[%emt 0:00:14]} Kxh5 {[%emt 0:00:04]} 36. Rce1 {[%emt 0:08:19]} Nf5 {[%emt 0:02:03]} 37. Rd2 {[%emt 0:01:24]} Kg6 {[%emt 0:01:12]} 38. g3 {[%emt 0:01:27]} f6 {[%emt 0:00:45]} 39. Kg2 {[%emt 0:00:34]} Rh8 {[%emt 0:05:02]} 40. Rdd1 {[%emt 0:00:00]} Nd6 {[%emt 0:00:00]} 41. Rh1 {[%emt 0:01:38]} Reh7 {[%emt 0:05:27]} 42. Rxh7 {[%emt 0:02:19]} Rxh7 {[%emt 0:00:30]} 43. Rh1 {[%emt 0:00:36]} Rxh1 {[%emt 0:00:30]} 44. Kxh1 {[%emt 0:00:30]} Ne4 {[%emt 0:07:08]} 45. Nxb7 {[%emt 0:33:31]} Nxf2+ {[%emt 0:00:30]} 46. Kg2 {[%emt 0:00:30]} Nd3 {[%emt 0:01:03]} 47. Kf3 {[%emt 0:02:04]} Nxb4 {[%emt 0:05:29]} 48. Nc5 {[%emt 0:00:48]} Kh5 {[%emt 0:02:41]} 49. Nd7 {[%emt 0:15:39]} Kg6 {[%emt 0:17:02]} 50. Nf8+ {[%emt 0:04:28]} Kf7 {[%emt 0:01:33]} 51. Nd7 {[%emt 0:00:30]} Kg6 {[%emt 0:01:25]} 52. Nf8+ {[%emt 0:01:16]} Kf7 {[%emt 0:01:37]} 53. Nd7 {[%emt 0:00:30]} Ke6 {[%emt 0:00:47]} 54. Nc5+ {[%emt 0:00:35]} Kf5 {[%emt 0:00:30]} 55. Nd7 $1 {[%emt 0:01:01]} Nd3 {[%emt 0:00:46]} 56. Nb8 {[%emt 0:00:43]} Nb4 {[%emt 0:01:24]} 57. Nd7 {[%emt 0:00:30]} Nd3 {[%emt 0:04:31]} 58. Nb8 {[%emt 0:00:30]} Nb4 {[%emt 0:01:06]} 59. Nd7 {[%emt 0:00:30]} Ke6 {[%emt 0:00:54]} 60. Nc5+ {[%emt 0:00:30]} Kf5 {[%emt 0:00:55]} 61. Nd7 {[%emt 0:00:32]} Kg6 {[%emt 0:00:48]} 62. Nc5 {[%emt 0:00:30]} Kh5 {[%emt 0:01:22]} 63. Nd7 {[%emt 0:00:30]} Kg6 $11 {[%emt 0:00:30]} 64. Nc5 {[%emt 0:04:40] f5Ke2 [%clk 0:00:00] Kh5Kd2 [%clk 0:00:00] Kg4 [%clk 0:00:00] Kc3 [%clk 0:00:00]} 1/2-1/2

[Event "44th BAN-ch OMICON 2018"]
[Site "Dhaka"]
[Date "2018.11.27"]
[Round "4"]
[White "Abu Sufian, Shakil"]
[Black "Zia, Tahsin Tajwar"]
[Result "1/2-1/2"]
[ECO "B53"]
[WhiteElo "2230"]
[BlackElo "1803"]
[Annotator "NA"]
[PlyCount "51"]
[EventDate "2018.11.24"]
[EventType "swiss"]
[EventCountry "BAN"]
[SourceTitle "playchess.com"]
[Source "ChessBase"]
[SourceQuality "1"]
[TimeControl "40/5400+30:1800+30"]

{[%evp 23,51,60,68,44,60,52,56,50,71,13,32767,0,0,-10,5,12,37,22,22,33,25,22,22,0,0,0,-7,0,0,0]} 1. e4 {[%emt 0:00:00]} c5 {[%emt 0:00:00]} 2. Nf3 {[%emt 0:00:00]} d6 {[%emt 0:00:03]} 3. d4 {[%emt 0:00:00]} cxd4 {[%emt 0:00:06]} 4. Qxd4 {[%emt 0:00:00]} Nf6 {[%emt 0:00:19]} 5. Bg5 {[%emt 0:00:51]} a6 {[%emt 0:00:20] B53: Sicilian: 2...d6: Lines with Qxd4} (5... e6 6. Bb5+ Bd7 7. Bxf6 Qxf6 8. Qxf6 gxf6 9. Bxd7+ Nxd7 10. Nc3 Rc8 11. O-O-O Ne5 12. Nxe5 fxe5 13. Nb5 {½-½ (37) Xiong,J (2652)-Vachier Lagrave,M (2795) chess.com INT 2017}) 6. c4 {[%emt 0:02:54]} Nc6 {[%emt 0:00:36]} 7. Qd3 {[%emt 0:01:26]} h6 $146 {[%emt 0:01:49]} ({Predecessor:} 7... e6 8. Nc3 Be7 9. Be2 h6 10. Bh4 O-O 11. a3 Nd7 12. Bxe7 Qxe7 13. Rd1 Nde5 14. Nxe5 dxe5 {1-0 (38) De Carvalho,A (1987)-Dos Santos,W (2133) Arapiraca 2016}) 8. Bxf6 {[%emt 0:01:00]} gxf6 {[%emt 0:00:20]} 9. Nc3 {[%emt 0:00:24]} e6 {[%emt 0:01:56]} 10. Be2 {[%emt 0:02:34]} Bd7 {[%emt 0:00:22]} 11. O-O {[%emt 0:01:37]} Be7 {[%emt 0:00:25]} 12. Rad1 {[%emt 0:01:56]} Qc7 {[%emt 0:01:49]} 13. b3 {[%emt 0:01:12]} Rc8 {[%emt 0:02:25]} 14. Rc1 {[%emt 0:15:51]} Qa5 {[%emt 0:01:36]} 15. Nd4 {[%emt 0:01:46]} Rg8 {[%emt 0:03:53]} 16. Rfe1 {[%emt 0:16:28]} Qg5 {[%emt 0:05:04]} 17. Bf1 {[%emt 0:02:26]} Ne5 {[%emt 0:03:10]} 18. Qd1 {[%emt 0:08:02]} Qh4 {[%emt 0:14:17]} 19. g3 {[%emt 0:01:29]} Qg4 {[%emt 0:02:14]} 20. Qxg4 {[%emt 0:04:16]} Rxg4 {[%emt 0:03:15]} 21. f4 {[%emt 0:01:25]} Nc6 {[%emt 0:02:59]} 22. Nxc6 {[%emt 0:04:14]} Bxc6 {[%emt 0:00:53]} 23. Bh3 {[%emt 0:01:56]} Rg8 {[%emt 0:00:43]} 24. f5 {[%emt 0:02:03]} Bd7 $1 {[%emt 0:04:21]} 25. Ne2 {[%emt 0:10:04]} Bd8 {[%emt 0:02:44]} 26. Nf4 $11 {[%emt 0:00:13]} 1/2-1/2

[Event "44th BAN-ch OMICON 2018"]
[Site "Dhaka"]
[Date "2018.11.27"]
[Round "4"]
[White "Anata, Choudhury"]
[Black "Mohammad Fahad, Rahman"]
[Result "1-0"]
[ECO "C88"]
[WhiteElo "2141"]
[BlackElo "2381"]
[Annotator "ChessBase"]
[PlyCount "105"]
[EventDate "2018.11.24"]
[EventType "swiss"]
[EventCountry "BAN"]
[SourceTitle "playchess.com"]
[Source "ChessBase"]
[SourceQuality "1"]
[TimeControl "40/5400+30:1800+30"]

1. e4 {[%emt 0:00:00]} e5 {[%emt 0:00:00]} 2. Nf3 {[%emt 0:00:00]} Nc6 {[%emt 0:00:00]} 3. Bb5 {[%emt 0:00:00]} a6 {[%emt 0:00:04]} 4. Ba4 {[%emt 0:00:07]} Nf6 {[%emt 0:00:22]} 5. O-O {[%emt 0:00:12]} b5 {[%emt 0:00:22]} 6. Bb3 {[%emt 0:00:15]} Bb7 {[%emt 0:00:19]} 7. d3 {[%emt 0:00:24]} Be7 {[%emt 0:00:21]} 8. a4 {[%emt 0:00:47]} O-O {[%emt 0:00:36]} 9. Re1 {[%emt 0:00:28]} Re8 {[%emt 0:13:08]} 10. Nc3 {[%emt 0:06:15]} b4 {[%emt 0:01:31]} 11. Nd5 {[%emt 0:00:26]} Nxd5 {[%emt 0:00:24]} 12. Bxd5 {[%emt 0:00:14]} Bf6 {[%emt 0:03:47]} 13. c3 {[%emt 0:10:35]} Qe7 {[%emt 0:07:25]} 14. d4 {[%emt 0:16:42]} Rab8 {[%emt 0:03:25]} 15. Be3 {[%emt 0:06:50]} d6 {[%emt 0:13:32]} 16. Qd2 {[%emt 0:09:50]} Na5 {[%emt 0:08:50]} 17. dxe5 {[%emt 0:08:39]} dxe5 {[%emt 0:05:36]} 18. cxb4 {[%emt 0:02:05]} Bxd5 {[%emt 0:02:06]} 19. Qxd5 {[%emt 0:00:54]} Nb7 {[%emt 0:00:07]} 20. Bd2 {[%emt 0:08:08]} Red8 {[%emt 0:00:25]} 21. Qc4 {[%emt 0:00:11]} Rd6 {[%emt 0:04:53]} 22. Bc3 {[%emt 0:01:50]} h6 {[%emt 0:03:43]} 23. Red1 {[%emt 0:04:57]} Qd7 {[%emt 0:05:19]} 24. Rxd6 {[%emt 0:01:06]} Qxd6 {[%emt 0:00:28]} 25. b5 {[%emt 0:01:15]} axb5 {[%emt 0:00:56]} 26. Qxb5 {[%emt 0:00:14]} c6 {[%emt 0:00:15]} 27. Qe2 {[%emt 0:00:49]} Nc5 {[%emt 0:01:39]} 28. Nd2 {[%emt 0:07:04]} Ne6 {[%emt 0:02:39]} 29. Nc4 {[%emt 0:01:46]} Qc5 {[%emt 0:01:10]} 30. g3 {[%emt 0:00:46]} Nd4 {[%emt 0:00:30]} 31. Bxd4 {[%emt 0:01:14]} exd4 {[%emt 0:00:14]} 32. e5 {[%emt 0:04:16]} Be7 {[%emt 0:08:43]} 33. Qd3 {[%emt 0:00:59]} Qd5 {[%emt 0:00:46]} 34. a5 {[%emt 0:01:07]} Bc5 {[%emt 0:00:05]} 35. a6 {[%emt 0:00:49]} Ba7 {[%emt 0:00:05]} 36. Ra5 {[%emt 0:01:49]} Qd8 {[%emt 0:02:01]} 37. Ra4 {[%emt 0:02:38]} Qd5 {[%emt 0:01:24]} 38. Ra3 {[%emt 0:01:21]} Qb5 {[%emt 0:01:11]} 39. b3 {[%emt 0:01:15]} Qb4 {[%emt 0:00:50]} 40. Kg2 {[%emt 0:00:00]} Qc3 {[%emt 0:00:00]} 41. Qe4 {[%emt 0:25:15]} Rd8 {[%emt 0:23:59]} 42. e6 {[%emt 0:02:03]} Qb4 {[%emt 0:03:33]} 43. exf7+ {[%emt 0:01:03]} Kxf7 {[%emt 0:00:07]} 44. Ne5+ {[%emt 0:01:33]} Kg8 {[%emt 0:00:06]} 45. Nxc6 {[%emt 0:01:15]} Qxa3 {[%emt 0:00:07]} 46. Qe6+ {[%emt 0:00:07]} Kh8 {[%emt 0:00:36]} 47. Nxd8 {[%emt 0:00:07]} d3 {[%emt 0:00:06]} 48. Qe8+ {[%emt 0:00:13]} Kh7 {[%emt 0:00:12]} 49. Qe4+ {[%emt 0:00:09]} Kh8 {[%emt 0:00:13]} 50. Qxd3 {[%emt 0:00:27]} Qf8 {[%emt 0:00:11]} 51. f3 {[%emt 0:02:31]} Bb6 {[%emt 0:00:08]} 52. Ne6 {[%emt 0:00:20]} Qf6 {[%emt 0:00:09]} 53. Nf4 {[%emt 0:00:28]} 1-0

[Event "44th BAN-ch OMICON 2018"]
[Site "Dhaka"]
[Date "2018.11.27"]
[Round "4"]
[White "Subrota, Biswas"]
[Black "Chatterjee, Debaraj"]
[Result "1/2-1/2"]
[ECO "B55"]
[WhiteElo "2126"]
[BlackElo "2277"]
[Annotator "ChessBase"]
[PlyCount "47"]
[EventDate "2018.11.24"]
[EventType "swiss"]
[EventCountry "BAN"]
[SourceTitle "playchess.com"]
[Source "ChessBase"]
[SourceQuality "1"]
[TimeControl "40/5400+30:1800+30"]

1. e4 {[%emt 0:00:00]} c5 {[%emt 0:01:16]} 2. Nf3 {[%emt 0:00:37]} d6 {[%emt 0:00:12]} 3. d4 {[%emt 0:00:24]} cxd4 {[%emt 0:00:08]} 4. Nxd4 {[%emt 0:00:05]} Nf6 {[%emt 0:00:09]} 5. f3 {[%emt 0:00:40]} e5 {[%emt 0:00:23]} 6. Nb3 {[%emt 0:00:02]} Be7 {[%emt 0:03:45]} 7. c4 {[%emt 0:00:50]} a5 {[%emt 0:01:53]} 8. a4 {[%emt 0:01:16]} Qb6 {[%emt 0:07:22]} 9. Qd3 {[%emt 0:04:13]} Nc6 {[%emt 0:14:06]} 10. Be3 {[%emt 0:01:40]} Qd8 {[%emt 0:07:23]} 11. Nc3 {[%emt 0:00:51]} Nb4 {[%emt 0:00:46]} 12. Qd2 {[%emt 0:01:24]} Be6 {[%emt 0:02:11]} 13. Nc1 {[%emt 0:13:08]} Rc8 {[%emt 0:05:33]} 14. b3 {[%emt 0:02:01]} Nd7 {[%emt 0:03:57]} 15. Nd3 {[%emt 0:00:59]} Nc5 {[%emt 0:14:35]} 16. Nxc5 {[%emt 0:00:46]} dxc5 {[%emt 0:00:04]} 17. Rd1 {[%emt 0:05:45]} Nc6 {[%emt 0:07:05]} 18. Nd5 {[%emt 0:02:50]} O-O {[%emt 0:02:32]} 19. Bd3 {[%emt 0:01:23]} b6 {[%emt 0:02:52]} 20. O-O {[%emt 0:01:44]} Nd4 {[%emt 0:02:15]} 21. Rb1 {[%emt 0:19:33]} Bd6 {[%emt 0:04:31]} 22. f4 {[%emt 0:01:34]} exf4 {[%emt 0:08:32]} 23. Bxf4 {[%emt 0:00:35]} f6 {[%emt 0:01:59]} 24. Qf2 {[%emt 0:03:27]} 1/2-1/2